[Event "FIDE Chesscom Grand Swiss 2019"]
[Site "Douglas-Isle of Man"]
[Date "2019.10.12"]
[Round "3.1"]
[White "Shirov, Alexei"]
[Black "Caruana, Fabiano"]
[Result "0-1"]
[ECO "B90"]
[WhiteElo "2664"]
[BlackElo "2812"]
[Annotator "RC"]
[PlyCount "104"]
[EventDate "2019.10.10"]
[EventType "swiss"]
[EventCountry "GBR"]
[SourceTitle "playchess.com"]
[Source "ChessBase"]
[SourceQuality "1"]
[TimeControl "40/6000+30:20/3000+30:900+30"]

1. e4 {[%emt 0:00:21]} c5 {[%emt 0:00:00]} 2. Nf3 {[%emt 0:00:05]} d6 {[%emt 0:00:00]} 3. d4 {[%emt 0:04:24]} cxd4 {[%emt 0:00:00]} 4. Nxd4 {[%emt 0:00:04]} Nf6 {[%emt 0:00:00]} 5. Nc3 {[%emt 0:00:05]} a6 {[%emt 0:00:04]} 6. Be3 {[%emt 0:02:05]} Ng4 {[%emt 0:00:58]} 7. Bc1 {[%emt 0:00:08]} Nf6 {[%emt 0:00:06]} 8. Be3 {[%emt 0:00:03]} e5 {[%emt 0:00:11]} 9. Nb3 {[%emt 0:00:33]} Be7 {[%emt 0:00:15]} 10. f3 {[%emt 0:00:58]} Be6 {[%emt 0:00:26]} 11. Qd2 {[%emt 0:00:25]} Nbd7 {[%emt 0:00:20]} 12. g4 {[%emt 0:04:58]} O-O {[%emt 0:00:21]} 13. g5 {[%emt 0:03:04]} Nh5 {[%emt 0:00:08]} 14. Rg1 {[%emt 0:11:01]} b5 {[%emt 0:06:20]} 15. Nd5 {[%emt 0:06:50]} Bxd5 {[%emt 0:04:52]} 16. exd5 {[%emt 0:01:18]} f5 {[%emt 0:09:59]} 17. h4 {[%emt 0:18:12]} Qe8 {[%emt 0:07:41]} 18. O-O-O {[%emt 0:19:26]} Bd8 {[%emt 0:01:14]} 19. Na5 {[%emt 0:10:29]} Bb6 {[%emt 0:03:21]} 20. Nc6 {[%emt 0:00:06]} Nf4 {[%emt 0:06:16]} 21. Bxb6 {[%emt 0:05:42]} Nxb6 {[%emt 0:00:13]} 22. Qb4 {[%emt 0:00:17]} Qd7 {[%emt 0:18:08]} 23. c4 {[%emt 0:00:18]} Kh8 {[%emt 0:05:44]} 24. Kb1 {[%emt 0:01:47]} Rae8 {[%emt 0:04:23]} 25. cxb5 {[%emt 0:00:40]} Nbxd5 {[%emt 0:03:58]} 26. Qb3 {[%emt 0:00:53]} e4 {[%emt 0:10:09]} 27. Rxd5 {[%emt 0:03:30]} Nxd5 {[%emt 0:00:04]} 28. Qxd5 {[%emt 0:00:06]} exf3 {[%emt 0:00:03]} 29. Qd2 {[%emt 0:11:14]} Re4 {[%emt 0:05:23]} 30. Rg3 {[%emt 0:05:17]} Qe6 {[%emt 0:04:56]} 31. Bd3 {[%emt 0:00:18]} Re3 {[%emt 0:11:02]} 32. Rg1 {[%emt 0:00:42]} f2 {[%emt 0:06:09]} 33. Rc1 {[%emt 0:00:07]} axb5 {[%emt 0:00:47]} 34. Nb4 {[%emt 0:00:57]} Rf3 {[%emt 0:00:50]} 35. Bxb5 {[%emt 0:00:32]} Qe4+ {[%emt 0:00:49]} 36. Nc2 {[%emt 0:00:13]} Rc8 {[%emt 0:01:23]} 37. Ba6 {[%emt 0:00:48]} d5 {[%emt 0:00:39]} 38. a3 {[%emt 0:00:31]} d4 {[%emt 0:00:31]} 39. Bxc8 {[%emt 0:00:32]} f1=Q {[%emt 0:00:06]} 40. Rxf1 {[%emt 0:00:09]} Rxf1+ {[%emt 0:00:03]} 41. Ka2 {[%emt 0:50:08]} d3 {[%emt 0:08:40]} 42. Ne3 {[%emt 0:00:00]} Rf3 {[%emt 0:01:24]} 43. Bxf5 {[%emt 0:00:00]} Qxe3 {[%emt 0:00:39]} 44. Qa5 {[%emt 0:00:00]} Qe8 {[%emt 0:01:01]} 45. Qd5 {[%emt 0:00:00]} Qg8 {[%emt 0:04:47]} 46. Be6 {[%emt 0:00:00]} Qf8 {[%emt 0:00:05]} 47. h5 {[%emt 0:00:00]} Re3 {[%emt 0:03:06]} 48. g6 {[%emt 0:00:00]} d2 {[%emt 0:06:47]} 49. Bf7 {[%emt 0:00:00]} Re2 {[%emt 0:01:34]} 50. Qd3 {[%emt 0:00:00]} Rh2 {[%emt 0:01:28]} 51. Qf3 {[%emt 0:00:00]} Rg2 {[%emt 0:03:27]} 52. Qd3 {[%emt 0:00:00]} Qb8 {[%emt 0:01:05]} 0-1

[Event "FIDE Chesscom Grand Swiss 2019"]
[Site "Douglas-Isle of Man"]
[Date "2019.10.12"]
[Round "3.4"]
[White "Kamsky, Gata"]
[Black "Gonzalez Vidal, Yuri"]
[Result "1-0"]
[ECO "A03"]
[WhiteElo "2685"]
[BlackElo "2552"]
[Annotator "RC"]
[PlyCount "111"]
[EventDate "2019.10.10"]
[EventType "swiss"]
[EventCountry "GBR"]
[SourceTitle "playchess.com"]
[Source "ChessBase"]
[SourceQuality "1"]
[TimeControl "40/6000+30:20/3000+30:900+30"]

1. g3 {[%emt 0:00:10]} Nf6 {[%emt 0:00:15]} 2. Bg2 {[%emt 0:00:08]} d5 {[%emt 0:00:25]} 3. f4 {[%emt 0:00:09]} g6 {[%emt 0:01:35]} 4. Nf3 {[%emt 0:00:07]} Bg7 {[%emt 0:00:13]} 5. d3 {[%emt 0:00:22]} c5 {[%emt 0:03:11]} 6. O-O {[%emt 0:03:12]} Nc6 {[%emt 0:02:12]} 7. c3 {[%emt 0:00:19]} O-O {[%emt 0:00:38]} 8. Na3 {[%emt 0:01:00]} Rb8 {[%emt 0:10:33]} 9. Ne5 {[%emt 0:00:24]} Nxe5 {[%emt 0:15:10]} 10. fxe5 {[%emt 0:00:06]} Ne8 {[%emt 0:00:20]} 11. d4 {[%emt 0:14:59]} Nc7 {[%emt 0:01:22]} 12. dxc5 {[%emt 0:14:51]} Bxe5 {[%emt 0:01:10]} 13. Bh6 {[%emt 0:00:06]} Re8 {[%emt 0:11:43]} 14. Nc2 {[%emt 0:04:55]} Bh8 {[%emt 0:08:33]} 15. Qd2 {[%emt 0:12:34]} e5 {[%emt 0:02:33]} 16. Rad1 {[%emt 0:02:23]} Qe7 {[%emt 0:03:35]} 17. Nb4 {[%emt 0:07:01]} Be6 {[%emt 0:05:09]} 18. Nxd5 {[%emt 0:02:13]} Nxd5 {[%emt 0:03:19]} 19. Bxd5 {[%emt 0:00:06]} Qxc5+ {[%emt 0:14:13]} 20. Be3 {[%emt 0:00:41]} Qxd5 {[%emt 0:08:53]} 21. Qxd5 {[%emt 0:01:35]} Bxd5 {[%emt 0:00:04]} 22. Rxd5 {[%emt 0:00:05]} Red8 {[%emt 0:01:57]} 23. Rfd1 {[%emt 0:00:38]} Rxd5 {[%emt 0:01:00]} 24. Rxd5 {[%emt 0:00:06]} b6 {[%emt 0:00:21]} 25. Rd7 {[%emt 0:02:47]} a5 {[%emt 0:01:49]} 26. a4 {[%emt 0:07:57]} Bf6 {[%emt 0:00:35]} 27. Kf2 {[%emt 0:02:35]} Kg7 {[%emt 0:00:20]} 28. Kf3 {[%emt 0:01:09]} h5 {[%emt 0:02:34]} 29. h3 {[%emt 0:00:31]} Kf8 {[%emt 0:02:50]} 30. Rd5 {[%emt 0:01:17]} Bd8 {[%emt 0:00:55]} 31. Rxe5 {[%emt 0:00:09]} Bc7 {[%emt 0:00:15]} 32. Bh6+ {[%emt 0:02:59]} Kg8 {[%emt 0:00:02]} 33. Rd5 {[%emt 0:01:02]} Kh7 {[%emt 0:01:32]} 34. Be3 {[%emt 0:00:58]} Kg7 {[%emt 0:00:24]} 35. Bd4+ {[%emt 0:09:32]} Kf8 {[%emt 0:00:14]} 36. Bf6 {[%emt 0:00:05]} Re8 {[%emt 0:00:16]} 37. e4 {[%emt 0:00:28]} Re6 {[%emt 0:00:16]} 38. e5 {[%emt 0:00:06]} Ke8 {[%emt 0:01:05]} 39. Ke4 {[%emt 0:00:29]} Rc6 {[%emt 0:00:22]} 40. Kd4 {[%emt 0:00:11]} Kf8 {[%emt 0:01:10]} 41. g4 {[%emt 0:50:10]} hxg4 {[%emt 0:50:41]} 42. hxg4 {[%emt 0:00:04]} Ke8 {[%emt 0:00:20]} 43. g5 {[%emt 0:06:13]} Kf8 {[%emt 0:01:23]} 44. c4 {[%emt 0:03:59]} Ke8 {[%emt 0:01:18]} 45. Kc3 {[%emt 0:00:06]} Rc5 {[%emt 0:00:00]} 46. b4 {[%emt 0:00:00]} axb4+ {[%emt 0:00:00]} 47. Kxb4 {[%emt 0:00:00]} Ra5 {[%emt 0:00:00]} 48. Rd3 {[%emt 0:00:00]} Ra8 {[%emt 0:00:00]} 49. Rd4 {[%emt 0:00:00]} Ra5 {[%emt 0:00:00]} 50. Rd5 {[%emt 0:02:36]} Rc5 {[%emt 0:00:00]} 51. Rxc5 {[%emt 0:00:00]} bxc5+ {[%emt 0:00:00]} 52. Kxc5 {[%emt 0:00:00]} Kd7 {[%emt 0:00:00]} 53. Kb5 {[%emt 0:00:00]} Bb8 {[%emt 0:00:00]} 54. Kb6 {[%emt 0:00:00]} Kc8 {[%emt 0:00:00]} 55. Kc6 {[%emt 0:00:00]} Bc7 {[%emt 0:00:00]} 56. c5 {[%emt 0:00:00]} 1-0

[Event "FIDE Chesscom Grand Swiss 2019"]
[Site "Douglas-Isle of Man"]
[Date "2019.10.12"]
[Round "3.14"]
[White "Keymer, Vincent"]
[Black "Sjugirov, Sanan"]
[Result "1-0"]
[ECO "A41"]
[WhiteElo "2506"]
[BlackElo "2662"]
[Annotator "RC"]
[PlyCount "105"]
[EventDate "2019.10.10"]
[EventType "swiss"]
[EventCountry "GBR"]
[SourceTitle "playchess.com"]
[Source "ChessBase"]
[SourceQuality "1"]
[TimeControl "40/6000+30:20/3000+30:900+30"]

1. d4 {[%emt 0:00:00]} g6 {[%emt 0:00:00]} 2. c4 {[%emt 0:01:29]} Bg7 {[%emt 0:00:01]} 3. Nf3 {[%emt 0:01:04]} d6 {[%emt 0:00:30]} 4. g3 {[%emt 0:02:00]} c5 {[%emt 0:00:54]} 5. d5 {[%emt 0:18:20]} b5 {[%emt 0:00:56]} 6. cxb5 {[%emt 0:01:13]} Qa5+ {[%emt 0:00:57]} 7. Nc3 {[%emt 0:02:50]} a6 {[%emt 0:00:49]} 8. b6 {[%emt 0:00:37]} Qxb6 {[%emt 0:21:13]} 9. Nd2 {[%emt 0:03:58]} Nf6 {[%emt 0:07:37]} 10. Bg2 {[%emt 0:07:26]} O-O {[%emt 0:07:03]} 11. O-O {[%emt 0:03:32]} Nbd7 {[%emt 0:03:02]} 12. b3 {[%emt 0:12:07]} a5 {[%emt 0:17:08]} 13. Nc4 {[%emt 0:01:49]} Qa6 {[%emt 0:06:02]} 14. Na4 {[%emt 0:08:50]} Ng4 {[%emt 0:02:52]} 15. Bb2 {[%emt 0:00:34]} Bxb2 {[%emt 0:13:44]} 16. Naxb2 {[%emt 0:00:35]} Nge5 {[%emt 0:03:11]} 17. Nxe5 {[%emt 0:06:57]} Nxe5 {[%emt 0:00:08]} 18. f4 {[%emt 0:00:13]} Nd7 {[%emt 0:01:51]} 19. Rc1 {[%emt 0:06:13]} Nb6 {[%emt 0:01:21]} 20. a4 {[%emt 0:00:48]} Bg4 {[%emt 0:01:45]} 21. Rf2 {[%emt 0:02:24]} Rfc8 {[%emt 0:05:41]} 22. h3 {[%emt 0:03:02]} Bd7 {[%emt 0:00:06]} 23. e4 {[%emt 0:01:45]} Qa7 {[%emt 0:00:29]} 24. f5 {[%emt 0:07:16]} f6 {[%emt 0:01:23]} 25. h4 {[%emt 0:04:11]} Kg7 {[%emt 0:03:44]} 26. g4 {[%emt 0:00:34]} Rf8 {[%emt 0:04:29]} 27. g5 {[%emt 0:02:52]} Rf7 {[%emt 0:02:02]} 28. Nd3 {[%emt 0:04:07]} c4 {[%emt 0:01:10]} 29. Nf4 {[%emt 0:00:47]} cxb3 {[%emt 0:01:24]} 30. Qxb3 {[%emt 0:00:06]} Nxa4 {[%emt 0:01:10]} 31. Qg3 {[%emt 0:01:21]} fxg5 {[%emt 0:00:57]} 32. Qxg5 {[%emt 0:00:51]} Raf8 {[%emt 0:00:13]} 33. Rcf1 {[%emt 0:01:29]} Bxf5 {[%emt 0:01:59]} 34. exf5 {[%emt 0:00:15]} Rxf5 {[%emt 0:00:04]} 35. Ne6+ {[%emt 0:02:08]} Kg8 {[%emt 0:00:04]} 36. Nxf8 {[%emt 0:00:15]} Rxg5 {[%emt 0:00:23]} 37. hxg5 {[%emt 0:00:04]} Qe3 {[%emt 0:00:41]} 38. Kh1 {[%emt 0:01:55]} Nc5 {[%emt 0:01:24]} 39. Nxh7 {[%emt 0:01:36]} Nd7 {[%emt 0:00:12]} 40. Nf8 {[%emt 0:00:07]} Nc5 {[%emt 0:00:45]} 41. Nxg6 {[%emt 0:50:39]} Qxg5 {[%emt 0:11:05]} 42. Rf8+ {[%emt 0:00:00]} Kg7 {[%emt 0:00:05]} 43. R1f7+ {[%emt 0:00:00]} Kxg6 {[%emt 0:00:08]} 44. Rg8+ {[%emt 0:00:00]} Kxf7 {[%emt 0:00:04]} 45. Rxg5 {[%emt 0:00:00]} Kf6 {[%emt 0:00:03]} 46. Rh5 {[%emt 0:00:00]} a4 {[%emt 0:00:08]} 47. Bf1 {[%emt 0:00:00]} Ne4 {[%emt 0:00:34]} 48. Kg2 {[%emt 0:00:00]} Nc3 {[%emt 0:00:05]} 49. Bc4 {[%emt 0:00:00]} a3 {[%emt 0:00:06]} 50. Kf3 {[%emt 0:00:00]} e6 {[%emt 0:03:11]} 51. dxe6 {[%emt 0:00:00]} d5 {[%emt 0:00:05]} 52. Rxd5 {[%emt 0:00:00]} a2 {[%emt 0:01:18]} 53. Ra5 {[%emt 0:00:00]} 1-0

[Event "FIDE Chesscom Grand Swiss 2019"]
[Site "Douglas-Isle of Man"]
[Date "2019.10.12"]
[Round "3.15"]
[White "Kovalev, Vladislav"]
[Black "Gavrilescu, David"]
[Result "1-0"]
[ECO "C07"]
[WhiteElo "2661"]
[BlackElo "2451"]
[Annotator "RC"]
[PlyCount "301"]
[EventDate "2019.10.10"]
[EventType "swiss"]
[EventCountry "GBR"]
[SourceTitle "playchess.com"]
[Source "ChessBase"]
[SourceQuality "1"]
[TimeControl "40/6000+30:20/3000+30:900+30"]

1. e4 {[%emt 0:00:05]} e6 {[%emt 0:00:00]} 2. d4 {[%emt 0:00:12]} d5 {[%emt 0:00:14]} 3. Nd2 {[%emt 0:00:06]} c5 {[%emt 0:00:34]} 4. Ngf3 {[%emt 0:00:05]} cxd4 {[%emt 0:00:53]} 5. Nxd4 {[%emt 0:00:08]} Nc6 {[%emt 0:01:08]} 6. Bb5 {[%emt 0:00:14]} Bd7 {[%emt 0:00:49]} 7. Nxc6 {[%emt 0:00:06]} bxc6 {[%emt 0:00:23]} 8. Bd3 {[%emt 0:00:04]} Qc7 {[%emt 0:01:14]} 9. Qe2 {[%emt 0:00:13]} Ne7 {[%emt 0:00:35]} 10. O-O {[%emt 0:00:45]} Ng6 {[%emt 0:00:14]} 11. Nf3 {[%emt 0:00:05]} Bd6 {[%emt 0:01:07]} 12. Re1 {[%emt 0:00:06]} Nf4 {[%emt 0:01:14]} 13. Bxf4 {[%emt 0:00:04]} Bxf4 {[%emt 0:00:08]} 14. g3 {[%emt 0:00:08]} Bd6 {[%emt 0:00:20]} 15. exd5 {[%emt 0:00:14]} cxd5 {[%emt 0:00:09]} 16. Rac1 {[%emt 0:00:06]} Rd8 {[%emt 0:01:29]} 17. c4 {[%emt 0:00:12]} dxc4 {[%emt 0:00:26]} 18. Rxc4 {[%emt 0:00:07]} Qb6 {[%emt 0:00:26]} 19. Ne5 {[%emt 0:00:14]} g6 {[%emt 0:00:52]} 20. Rc3 {[%emt 0:02:08]} O-O {[%emt 0:05:53]} 21. Nc4 {[%emt 0:02:25]} Qb8 {[%emt 0:07:07]} 22. Nxd6 {[%emt 0:08:32]} Qxd6 {[%emt 0:00:22]} 23. Qe5 {[%emt 0:00:11]} Bc6 {[%emt 0:03:23]} 24. Qxd6 {[%emt 0:46:23]} Rxd6 {[%emt 0:00:08]} 25. Rec1 {[%emt 0:00:02]} Rfd8 {[%emt 0:03:41]} 26. Rxc6 {[%emt 0:08:46]} Rxc6 {[%emt 0:01:23]} 27. Rxc6 {[%emt 0:00:04]} Rxd3 {[%emt 0:00:08]} 28. Ra6 {[%emt 0:00:20]} Rd7 {[%emt 0:00:42]} 29. Kg2 {[%emt 0:03:08]} Kg7 {[%emt 0:09:26]} 30. b4 {[%emt 0:03:10]} Kf6 {[%emt 0:05:57]} 31. Kf3 {[%emt 0:05:39]} Kf5 {[%emt 0:08:32]} 32. g4+ {[%emt 0:11:47]} Kg5 {[%emt 0:13:10]} 33. Kg3 {[%emt 0:00:13]} Kf6 {[%emt 0:02:33]} 34. h4 {[%emt 0:04:38]} h5 {[%emt 0:03:24]} 35. g5+ {[%emt 0:02:22]} Kf5 {[%emt 0:01:13]} 36. Ra5+ {[%emt 0:01:30]} Ke4 {[%emt 0:03:00]} 37. f3+ {[%emt 0:00:30]} Ke3 {[%emt 0:01:07]} 38. a3 {[%emt 0:03:47]} Rd5 {[%emt 0:09:02]} 39. Rc5 {[%emt 0:03:47]} Rf5 {[%emt 0:08:13]} 40. Rc3+ {[%emt 0:00:58]} Kd4 {[%emt 0:04:20]} 41. Rc1 {[%emt 0:50:40]} Ke3 {[%emt 0:56:35]} 42. Re1+ {[%emt 0:00:57]} Kd3 {[%emt 0:02:50]} 43. a4 {[%emt 0:00:00]} a6 {[%emt 0:00:00]} 44. Rc1 {[%emt 0:00:00]} Ke3 {[%emt 0:00:00]} 45. Rc3+ {[%emt 0:00:00]} Kd4 {[%emt 0:00:00]} 46. Rc6 {[%emt 0:00:00]} Ke3 {[%emt 0:00:00]} 47. f4 {[%emt 0:00:00]} Rxf4 {[%emt 0:00:00]} 48. Rc3+ {[%emt 0:00:00]} Kd4 {[%emt 0:00:00]} 49. Kxf4 {[%emt 0:00:00]} e5+ {[%emt 0:00:00]} 50. Kf3 {[%emt 0:09:05]} Kxc3 {[%emt 0:00:00]} 51. Ke4 {[%emt 0:00:31]} Kxb4 {[%emt 0:00:00]} 52. Kxe5 {[%emt 0:00:07]} Kxa4 {[%emt 0:00:00]} 53. Kf6 {[%emt 0:00:01]} Kb4 {[%emt 0:00:00]} 54. Kxf7 {[%emt 0:00:03]} a5 {[%emt 0:00:00]} 55. Kxg6 {[%emt 0:00:07]} a4 {[%emt 0:00:00]} 56. Kxh5 {[%emt 0:00:10]} a3 {[%emt 0:00:00]} 57. g6 {[%emt 0:00:01]} a2 {[%emt 0:00:00]} 58. g7 {[%emt 0:00:02]} a1=Q {[%emt 0:00:00]} 59. g8=Q {[%emt 0:00:04]} Qe5+ {[%emt 0:00:00]} 60. Qg5 {[%emt 0:00:05]} Qe8+ {[%emt 0:00:00]} 61. Kg4 {[%emt 0:16:21]} Qe2+ {[%emt 0:17:49]} 62. Kf5 {[%emt 0:00:25]} Qc2+ {[%emt 0:02:07]} 63. Kf6 {[%emt 0:01:01]} Qc6+ {[%emt 0:00:13]} 64. Kf7 {[%emt 0:00:05]} Qc4+ {[%emt 0:00:34]} 65. Kg7 {[%emt 0:00:07]} Qc7+ {[%emt 0:01:48]} 66. Kg6 {[%emt 0:00:17]} Qd6+ {[%emt 0:03:09]} 67. Qf6 {[%emt 0:00:42]} Qg3+ {[%emt 0:00:05]} 68. Kf7 {[%emt 0:00:06]} Qd3 {[%emt 0:04:07]} 69. Qf4+ {[%emt 0:01:38]} Ka3 {[%emt 0:01:05]} 70. Kg7 {[%emt 0:00:11]} Qd7+ {[%emt 0:00:55]} 71. Kg6 {[%emt 0:00:10]} Qe8+ {[%emt 0:01:12]} 72. Kg5 {[%emt 0:00:08]} Qg8+ {[%emt 0:00:22]} 73. Kf5 {[%emt 0:00:07]} Qf7+ {[%emt 0:00:17]} 74. Kg4 {[%emt 0:00:07]} Qg6+ {[%emt 0:00:30]} 75. Kf3 {[%emt 0:00:21]} Ka2 {[%emt 0:01:01]} 76. Qa4+ {[%emt 0:01:02]} Kb2 {[%emt 0:00:04]} 77. Qd4+ {[%emt 0:00:10]} Ka2 {[%emt 0:00:17]} 78. Qd5+ {[%emt 0:00:21]} Ka1 {[%emt 0:01:11]} 79. h5 {[%emt 0:04:46]} Qf6+ {[%emt 0:00:00]} 80. Kg4 {[%emt 0:00:00]} Qg7+ {[%emt 0:00:00]} 81. Kf5 {[%emt 0:00:00]} Qh7+ {[%emt 0:00:00]} 82. Kf4 {[%emt 0:00:00]} Qh6+ {[%emt 0:00:00]} 83. Ke4 {[%emt 0:00:00]} Qh7+ {[%emt 0:00:00]} 84. Kf3 {[%emt 0:00:00]} Qh6 {[%emt 0:00:00]} 85. Qd4+ {[%emt 0:00:00]} Ka2 {[%emt 0:00:00]} 86. Qf2+ {[%emt 0:00:00]} Ka1 {[%emt 0:00:00]} 87. Qg1+ {[%emt 0:00:00]} Kb2 {[%emt 0:00:00]} 88. Qf2+ {[%emt 0:00:00]} Ka1 {[%emt 0:00:00]} 89. Qe1+ {[%emt 0:00:00]} Ka2 {[%emt 0:00:00]} 90. Qe2+ {[%emt 0:00:00]} Kb1 {[%emt 0:00:00]} 91. Qe4+ {[%emt 0:00:00]} Ka1 {[%emt 0:00:00]} 92. Qe5+ {[%emt 0:00:00]} Ka2 {[%emt 0:00:04]} 93. Kg4 {[%emt 0:00:00]} Qh7 {[%emt 0:02:08]} 94. Qe6+ {[%emt 0:00:00]} Ka1 {[%emt 0:00:55]} 95. h6 {[%emt 0:00:00]} Qb7 {[%emt 0:01:38]} 96. Qe5+ {[%emt 0:00:00]} Ka2 {[%emt 0:01:35]} 97. Qe6+ {[%emt 0:00:01]} Ka3 {[%emt 0:02:22]} 98. Qe3+ {[%emt 0:01:12]} Ka2 {[%emt 0:01:28]} 99. Qf2+ {[%emt 0:00:03]} Ka1 {[%emt 0:00:46]} 100. Kg5 {[%emt 0:00:56]} Qd5+ {[%emt 0:00:53]} 101. Qf5 {[%emt 0:00:06]} Qg8+ {[%emt 0:00:08]} 102. Kh4 {[%emt 0:00:39]} Qd8+ {[%emt 0:00:43]} 103. Kh3 {[%emt 0:00:19]} Qb6 {[%emt 0:01:58]} 104. h7 {[%emt 0:00:41]} Qe3+ {[%emt 0:00:24]} 105. Kh4 {[%emt 0:01:02]} Qe1+ {[%emt 0:00:44]} 106. Kh5 {[%emt 0:00:18]} Qh1+ {[%emt 0:00:23]} 107. Kg6 {[%emt 0:00:11]} Qg2+ {[%emt 0:00:10]} 108. Kf6 {[%emt 0:01:58]} Qc6+ {[%emt 0:00:25]} 109. Kg7 {[%emt 0:01:09]} Qc7+ {[%emt 0:00:56]} 110. Qf7 {[%emt 0:01:38]} Qg3+ {[%emt 0:00:07]} 111. Qg6 {[%emt 0:00:53]} Qc7+ {[%emt 0:00:07]} 112. Kh8 {[%emt 0:00:50]} Ka2 {[%emt 0:00:44]} 113. Kg8 {[%emt 0:00:22]} Qd8+ {[%emt 0:00:43]} 114. Kg7 {[%emt 0:00:06]} Qd4+ {[%emt 0:00:05]} 115. Qf6 {[%emt 0:00:09]} Qg4+ {[%emt 0:00:25]} 116. Kf8 {[%emt 0:01:37]} Qc8+ {[%emt 0:00:29]} 117. Kf7 {[%emt 0:00:05]} Qd7+ {[%emt 0:00:26]} 118. Qe7 {[%emt 0:00:29]} Qf5+ {[%emt 0:00:05]} 119. Kg7 {[%emt 0:00:08]} Qg4+ {[%emt 0:00:13]} 120. Kf8 {[%emt 0:01:44]} Qc8+ {[%emt 0:00:18]} 121. Kg7 {[%emt 0:00:56]} Qg4+ {[%emt 0:00:11]} 122. Kh6 {[%emt 0:00:21]} Qh3+ {[%emt 0:02:40]} 123. Kg5 {[%emt 0:01:34]} Qg3+ {[%emt 0:00:22]} 124. Kf5 {[%emt 0:00:09]} Qf3+ {[%emt 0:00:15]} 125. Kg6 {[%emt 0:00:11]} Qd3+ {[%emt 0:00:50]} 126. Kg7 {[%emt 0:00:26]} Qg3+ {[%emt 0:00:07]} 127. Kf8 {[%emt 0:01:42]} Qb8+ {[%emt 0:00:27]} 128. Kf7 {[%emt 0:00:04]} Qf4+ {[%emt 0:00:36]} 129. Qf6 {[%emt 0:00:02]} Qc7+ {[%emt 0:00:06]} 130. Kg6 {[%emt 0:00:58]} Qg3+ {[%emt 0:00:44]} 131. Qg5 {[%emt 0:00:01]} Qd6+ {[%emt 0:00:51]} 132. Kf7 {[%emt 0:00:20]} Qd7+ {[%emt 0:00:16]} 133. Kg8 {[%emt 0:00:09]} Qe8+ {[%emt 0:00:12]} 134. Kg7 {[%emt 0:00:04]} Qd7+ {[%emt 0:00:02]} 135. Kh8 {[%emt 0:00:09]} Ka3 {[%emt 0:00:40]} 136. Qe3+ {[%emt 0:00:32]} Ka4 {[%emt 0:00:45]} 137. Qe4+ {[%emt 0:00:10]} Kb3 {[%emt 0:01:17]} 138. Kg8 {[%emt 0:00:42]} Qd8+ {[%emt 0:00:09]} 139. Kf7 {[%emt 0:00:10]} Qd7+ {[%emt 0:00:16]} 140. Kf6 {[%emt 0:01:13]} Qd8+ {[%emt 0:00:13]} 141. Kf5 {[%emt 0:00:22]} Qf8+ {[%emt 0:00:14]} 142. Kg4 {[%emt 0:02:17]} Qg7+ {[%emt 0:00:53]} 143. Kf3 {[%emt 0:00:02]} Qf6+ {[%emt 0:00:40]} 144. Ke2 {[%emt 0:00:27]} Qb2+ {[%emt 0:00:15]} 145. Ke3 {[%emt 0:00:23]} Qc1+ {[%emt 0:00:16]} 146. Kf2 {[%emt 0:00:05]} Qb2+ {[%emt 0:00:27]} 147. Qe2 {[%emt 0:00:25]} Qh8 {[%emt 0:00:20]} 148. Qd3+ {[%emt 0:00:29]} Kb2 {[%emt 0:00:18]} 149. Ke2 {[%emt 0:00:41]} Qg7 {[%emt 0:00:56]} 150. Qe4 {[%emt 0:02:36]} Kc1 {[%emt 0:01:06]} 151. Qh1+ {[%emt 0:01:33]} 1-0

[Event "FIDE Chesscom Grand Swiss 2019"]
[Site "Douglas-Isle of Man"]
[Date "2019.10.12"]
[Round "3.18"]
[White "Erenberg, Ariel"]
[Black "Mamedov, Rauf"]
[Result "0-1"]
[ECO "D51"]
[WhiteElo "2463"]
[BlackElo "2645"]
[Annotator "RC"]
[PlyCount "76"]
[EventDate "2019.10.10"]
[EventType "swiss"]
[EventCountry "GBR"]
[SourceTitle "playchess.com"]
[Source "ChessBase"]
[SourceQuality "1"]
[TimeControl "40/6000+30:20/3000+30:900+30"]

1. d4 {[%emt 0:00:00]} Nf6 {[%emt 0:00:00]} 2. c4 {[%emt 0:00:00]} e6 {[%emt 0:00:00]} 3. Nf3 {[%emt 0:00:00]} d5 {[%emt 0:00:00]} 4. Nc3 {[%emt 0:00:03]} Nbd7 {[%emt 0:00:04]} 5. Bg5 {[%emt 0:02:13]} h6 {[%emt 0:01:59]} 6. Bh4 {[%emt 0:00:11]} c6 {[%emt 0:00:07]} 7. e3 {[%emt 0:00:08]} g5 {[%emt 0:00:04]} 8. Bg3 {[%emt 0:00:30]} Nh5 {[%emt 0:00:04]} 9. Bd3 {[%emt 0:11:44]} Nxg3 {[%emt 0:02:43]} 10. hxg3 {[%emt 0:00:02]} g4 {[%emt 0:04:36]} 11. Nd2 {[%emt 0:17:40]} Nf6 {[%emt 0:00:07]} 12. Qc2 {[%emt 0:05:49]} Bd7 {[%emt 0:00:13]} 13. e4 {[%emt 0:25:28]} dxe4 {[%emt 0:05:11]} 14. Bxe4 {[%emt 0:04:20]} Nxe4 {[%emt 0:16:57]} 15. Qxe4 {[%emt 0:09:21]} Qg5 {[%emt 0:01:44]} 16. c5 {[%emt 0:00:52]} f5 {[%emt 0:31:01]} 17. Qe2 {[%emt 0:05:07]} Bg7 {[%emt 0:07:24]} 18. Nc4 {[%emt 0:00:52]} O-O {[%emt 0:02:10]} 19. Rd1 {[%emt 0:08:32]} Rad8 {[%emt 0:05:48]} 20. O-O {[%emt 0:02:18]} h5 {[%emt 0:05:44]} 21. Nd6 {[%emt 0:05:30]} b6 {[%emt 0:02:21]} 22. Qd3 {[%emt 0:04:31]} h4 {[%emt 0:02:36]} 23. Ne2 {[%emt 0:00:06]} hxg3 {[%emt 0:01:23]} 24. fxg3 {[%emt 0:00:10]} Rb8 {[%emt 0:01:46]} 25. b3 {[%emt 0:01:00]} bxc5 {[%emt 0:00:55]} 26. dxc5 {[%emt 0:00:06]} e5 {[%emt 0:00:12]} 27. Qc4+ {[%emt 0:02:44]} Kh7 {[%emt 0:00:31]} 28. Rf2 {[%emt 0:01:17]} Qh5 {[%emt 0:08:05]} 29. Nc3 {[%emt 0:02:34]} Rf6 {[%emt 0:00:46]} 30. Kf1 {[%emt 0:00:44]} Be6 {[%emt 0:06:37]} 31. Qa6 {[%emt 0:00:04]} e4 {[%emt 0:00:28]} 32. Ncxe4 {[%emt 0:01:28]} fxe4 {[%emt 0:01:48]} 33. Rxf6 {[%emt 0:00:05]} Bxf6 {[%emt 0:00:06]} 34. Qxa7+ {[%emt 0:00:25]} Bg7 {[%emt 0:00:44]} 35. Qxb8 {[%emt 0:01:04]} Qh1+ {[%emt 0:00:04]} 36. Ke2 {[%emt 0:00:07]} Qxg2+ {[%emt 0:00:03]} 37. Ke3 {[%emt 0:00:07]} Qf3+ {[%emt 0:00:06]} 38. Kd2 {[%emt 0:00:02]} Qf2+ {[%emt 0:00:04]} 0-1